Cogmind - Beta 11.1 @@@ ROGUE MODE // 2022.06.16 @ 19:43:42 Player: Delirus Result: Self-destructed Performance ------------- Evolutions (2) 1000 Regions Visited (5) 1000 Robots Destroyed (43) 215 Value Destroyed (1122) 1122 Prototype IDs (29) 580 Alien Tech Used (0) 0 Bonus (300) 300 TOTAL SCORE: 4217 Bonus ------- Aligned with FarCom 300 Cogmind --------- Core Integrity 193/550 Matter 178/300 Energy 265/265 System Corruption 0% Temperature Cool (69) Movement Treading (400) Ox3 Location -8/Materials Parts ------- > --- POWER (1) -------- Improved Ion Engine > --- PROPULSION (4) --- Light Treads > --- UTILITY (3) ------ Improved Heat Sink High-capacity Storage Unit Improved Targeting Computer > --- WEAPON (3) ------- Heavy Assault Rifle Flak Cannon Rocket Launcher > --- INVENTORY (20) --- Improved Ion Engine Light Treads Experimental Sensor Array Improved Signal Interpreter Improved Terrain Scanner 0b10 Alert Chip Weapon Cycler Hardened Medium Armor Plating Shock Absorption System Hacking Suite Ion Cannon Assault Rifle Autogun High-powered Shotgun Enhanced Autogun Datajack Chainsword Peak State ------------ > --- POWER ------------ Improved Ion Engine > --- PROPULSION ------- Light Treads Light Treads Light Treads Compact Wheel > --- UTILITY ---------- Improved Heat Sink High-capacity Storage Unit Improved Medium Armor Plating > --- WEAPON ----------- Beam Cannon Autogun Chainsword > --- INVENTORY -------- Improved Ion Engine Experimental Sensor Array Improved Signal Interpreter Improved Terrain Scanner 0b10 Alert Chip Weapon Cycler Medium Armor Plating Hardened Medium Armor Plating Shock Absorption System Hacking Suite Ion Cannon Ion Cannon Assault Rifle Heavy Assault Rifle Autogun High-powered Shotgun Enhanced Autogun Rocket Launcher Datajack [Rating: 27] Favorites ----------- Power Ion Engine Engine Ion Engine Propulsion Light Treads Treads Light Treads Leg Aluminum Leg Wheel Compact Wheel Utility High-capacity Storage Unit Device Heat Sink Storage High-capacity Storage Unit Processor Improved Targeting Computer Protection Improved Medium Armor Plating Weapon Light Cannon Energy Gun Particle Gun Energy Cannon Beam Cannon Ballistic Gun Assault Rifle Ballistic Cannon Light Cannon Launcher Rocket Launcher Slashing Weapon Chainsword Special Melee Weapon Datajack Build | -11 -10 -10 -10 -9 -8 ------- Run | Scr Mat Min Exi Min Mat Slots Evolved 4 | . . . . . 4 Power . | . . . . . . Propulsion 2 | . . . . . 2 Utility 1 | . . . . . 1 Weapon 1 | . . . . . 1 Parts Attached 48 | 3 8 1 1 3 32 Power 2 | . . . . 1 1 Engine 2 | . . . . 1 1 Core . | . . . . . . Reactor . | . . . . . . Propulsion 13 | 2 2 . . . 9 Treads 9 | 1 1 . . . 7 Leg . | . . . . . . Wheel 4 | 1 1 . . . 2 Hover . | . . . . . . Flight . | . . . . . . Utility 10 | 1 4 . . . 5 Device 6 | 1 2 . . . 3 Storage 2 | . 2 . . . . Processor 1 | . . . . . 1 Hackware . | . . . . . . Protection 1 | . . . . . 1 Artifact . | . . . . . . Weapon 23 | . 2 1 1 2 17 Energy Gun 2 | . . . . . 2 Energy Cannon 4 | . 1 . . . 3 Ballistic Gun 9 | . . . . 2 7 Ballistic Cannon 2 | . . 1 . . 1 Launcher 3 | . 1 . . . 2 Special Weapon . | . . . . . . Impact Weapon . | . . . . . . Slashing Weapon 2 | . . . . . 2 Piercing Weapon . | . . . . . . Special Melee Weapon 1 | . . . 1 . . Unidentified Prototypes . | . . . . . . Parts Lost 9 | . 1 . . . 8 Power . | . . . . . . Propulsion 6 | . 1 . . . 5 Utility 1 | . . . . . 1 Weapon 2 | . . . . . 2 Highest Loss Streak 4 | . 1 . . . 4 To Critical Strikes . | . . . . . . Average Slot Usage (%) 97 | . 99 100 100 100 94 Engine 12 | . 14 14 14 14 9 Treads 18 | . 14 14 14 14 26 Wheel 10 | . 13 14 14 14 4 Device 11 | . 14 14 14 14 8 Storage 12 | . 14 14 14 14 9 Protection 3 | . . . . . 8 Energy Gun 1 | . . . . . 4 Energy Cannon 2 | . 7 . . . 3 Ballistic Gun 12 | . 20 14 1 11 12 Ballistic Cannon 9 | . . 14 14 14 5 Special Melee Weapon 2 | . . . 12 2 . Naked Turns . | . . . . . . Heaviest Build 65 | 14 52 51 51 52 65 Greatest Support 80 | 20 40 16 16 16 80 Greatest Overweight (x) 6 | . 3 3 3 3 6 Average Overweight (x) 2 | . 1 3 3 3 2 Largest Inventory Capacity 20 | 8 20 20 20 20 20 Average Capacity 18 | 8 11 20 20 20 20 Most Carried 20 | 8 12 13 14 20 20 Average Carried 14 | 6 9 12 13 16 18 Final Capacity 20 | 8 20 20 20 20 20 Final Carried 19 | 6 11 13 14 19 17 Class Distribution -------------------- 67% | Mutant 27% | Skirmisher 4% | Scavenger-Skirmisher Dominant Class ---------------- Mutant | -10/Materials Mutant | -10/Mines Mutant | -10/Exiles Mutant | -9/Mines Skirmisher | -8/Materials Resources | -11 -10 -10 -10 -9 -8 ----------- Run | Scr Mat Min Exi Min Mat Matter Collected 1435 | 238 170 43 . 155 829 Remotely . | . . . . . . Salvage Created 1371 | 96 282 39 . 70 884 Parts 89 | 6 24 5 . 2 52 Haulers Intercepted 3 | . . . . . 3 Recyclers Shooed . | . . . . . . Parts Field Recycled . | . . . . . . Retrieved Matter . | . . . . . . Parts Self-Destructed . | . . . . . . Prevented . | . . . . . . Kills | -11 -10 -10 -10 -9 -8 ------- Run | Scr Mat Min Exi Min Mat Combat Hostiles Destroyed 30 | . 10 3 . 2 15 Melee 1 | . . . . . 1 Guns 23 | . 9 2 . 1 11 Cannons 5 | . 1 1 . 1 2 AOE 1 | . . . . . 1 Classes Destroyed 11 | 2 3 . . . 6 Worker 4 | . . . . . 4 Builder 1 | . . . . . 1 Tunneler 1 | 1 . . . . . Hauler 3 | . . . . . 3 Recycler 1 | 1 . . . . . Operator 1 | . 1 . . . . Watcher 2 | . . . . . 2 Swarmer 8 | . 5 3 . . . Grunt 17 | . 5 . . 2 10 Duelist 1 | . . . . . 1 Sentry 4 | . . . . . 4 Best Kill Streak 5 | 2 5 3 . 1 4 Combat Bots Only 5 | . 5 3 . 1 3 Max Kills in Single Turn 2 | 1 1 1 . 1 2 Gunslinging . | . . . . . . Exploded 1 | . . . . . 1 Melee 1 | . . . . . 1 Uniques/NPCs Destroyed . | . . . . . . Combat | -11 -10 -10 -10 -9 -8 -------- Run | Scr Mat Min Exi Min Mat Damage Taken 2321 | . 325 106 . 66 1824 Core 411 | . 24 8 . 22 357 Absorbed by Shields . | . . . . . . Regen/Repaired (Parts) 126 | . . . . . 126 Core Remaining (%) 89 | 100 . . . 78 . Volleys Fired 122 | 2 33 9 . 10 68 Largest 3 | 2 2 2 . 2 3 Hottest 127 | 40 80 55 . 58 127 Shots Fired 311 | 4 66 19 . 20 202 Gun 206 | 4 48 9 . 10 135 Cannon 104 | . 18 10 . 10 66 Launcher 1 | . . . . . 1 Special . | . . . . . . Kinetic 249 | 4 48 19 . 20 158 Thermal 61 | . 18 . . . 43 Explosive 1 | . . . . . 1 Electromagnetic . | . . . . . . Robot Hit Streak 15 | 2 14 5 . 4 15 Robot Miss Streak 6 | . 5 6 . 3 4 Penetration Max . | . . . . . . Secondary Targets 2 | . 1 . . . 1 Max Gunslinging Chain 1 | . 1 . . . 1 Shots Hit Robots 194 | 2 37 5 8 13 129 Core Hits 85 | 2 17 3 . 3 60 Critical Kills . | . . . . . . Critical Parts Destroyed . | . . . . . . Critical Strikes 1 | . . . . . 1 Burn 1 | . . . . . 1 Melee Attacks 25 | . . . 8 1 16 Impact . | . . . . . . Slashing 16 | . . . . . 16 Piercing . | . . . . . . Sneak Attacks 8 | . . . 7 1 . Combat Hostiles . | . . . . . . Follow-up Attacks . | . . . . . . Damage Inflicted 3531 | 26 560 72 . 195 2678 Guns 1857 | 26 291 38 . 74 1428 Cannons 1288 | . 262 34 . 121 871 Explosions 173 | . . . . . 173 Melee 191 | . . . . . 191 Ramming 22 | . 7 . . . 15 Kinetic 2372 | 26 291 72 . 195 1788 Thermal 773 | . 262 . . . 511 Explosive 173 | . . . . . 173 Electromagnetic . | . . . . . . Impact . | . . . . . . Slashing 191 | . . . . . 191 Piercing . | . . . . . . Highest Corruption 1 | . 1 1 1 1 . Average Corruption 1 | . 1 1 1 1 . Corruption Purged . | . . . . . . Corruption Blocked . | . . . . . . Effects 18 | . 3 5 4 6 . Message Errors 4 | . . 1 2 1 . Matter Fused 6 | . 1 1 2 2 . Energy Discharges 4 | . . 1 . 3 . Data Loss (minor) 2 | . 1 1 . . . Misfires 1 | . . 1 . . . Alerts 1 | . 1 . . . . Overload Shots . | . . . . . . Overflow Damage 4 | . . . . . 4 Projectiles . | . . . . . . Explosions . | . . . . . . Melee 4 | . . . . . 4 Knockbacks 10 | . . . . 4 6 Impact 1 | . . . . . 1 Kinetic 9 | . . . . 4 5 Secondary . | . . . . . . Self-Inflicted Damage 7 | . 3 . . . 4 Shots . | . . . . . . Rammed 5 | . 2 1 . . 2 Targets Rammed 5 | . 2 1 . . 2 Kicked . | . . . . . . Crushed . | . . . . . . Highest Temperature 174 | . 13 . . 5 174 Average Temperature 33 | . 4 . . 4 37 Received Heat Transfer 873 | . 135 . . 36 702 Siege Activations . | . . . . . . Robots Corrupted . | . . . . . . Combat Hostiles . | . . . . . . Parts Fried . | . . . . . . Impact Corruptions . | . . . . . . Robots Melted . | . . . . . . Combat Hostiles . | . . . . . . Parts Melted . | . . . . . . Heat Transferred 1702 | . 555 . . . 1147 Parts Sabotaged . | . . . . . . Parts Stolen . | . . . . . . Parts Stripped . | . . . . . . Power Chain Reactions . | . . . . . . Missiles Intercepted . | . . . . . . Alert | -11 -10 -10 -10 -9 -8 ------- Run | Scr Mat Min Exi Min Mat Peak Influence 321 | 10 321 100 . 40 241 Initial 52 | . 6 52 . . 15 Average 57 | 6 156 27 . 7 62 Maximum Alert Level 1 | . 1 . . . 1 Low Security (%) 93 | 100 72 100 . 100 94 Level 1 6 | . 27 . . . 5 Level 2 . | . . . . . . Level 3 . | . . . . . . Level 4 . | . . . . . . Level 5 . | . . . . . . High Security . | . . . . . . Max Security . | . . . . . . Squads Dispatched 7 | . 1 . . 1 5 Investigation 2 | . . . . 1 1 Extermination . | . . . . . . Reinforcement 4 | . 1 . . . 3 Assault . | . . . . . . Garrison 1 | . . . . . 1 Intercept . | . . . . . . Searches Triggered . | . . . . . . Construction Impeded . | . . . . . . Haulers Reinforced . | . . . . . . Active Scanning Responses . | . . . . . . Cargo Convoy Interrupts . | . . . . . . Stealth | -11 -10 -10 -10 -9 -8 --------- Run | Scr Mat Min Exi Min Mat Distress Signals 10 | . 2 . . . 8 Communications Jammed . | . . . . . . Distress Signals . | . . . . . . Times Spotted 55 | . 20 5 . 2 28 Peak Tracking Total 6 | . 4 3 . 1 6 Tactical Retreats 5 | . 2 1 . . 2 Traps | -11 -10 -10 -10 -9 -8 ------- Run | Scr Mat Min Exi Min Mat Traps Triggered 1 | . . . . . 1 Indirectly . | . . . . . . Trap Hack Attempts . | . . . . . . Triggered . | . . . . . . Disarmed . | . . . . . . Reprogrammed . | . . . . . . Reused . | . . . . . . Traps Extracted . | . . . . . . Installed . | . . . . . . Triggered . | . . . . . . Machines | -11 -10 -10 -10 -9 -8 ---------- Run | Scr Mat Min Exi Min Mat Machines Disabled . | . . . . . . Max in Single Turn . | . . . . . . Machines Sabotaged . | . . . . . . Garrisons Compromised . | . . . . . . Overloaded Fab Kills . | . . . . . . Hacking | -11 -10 -10 -10 -9 -8 --------- Run | Scr Mat Min Exi Min Mat Machines Accessed 14 | . 3 1 3 1 6 Terminals 9 | . 3 1 . . 5 Fabricators . | . . . . . . Repair Stations 1 | . . . . . 1 Recycling Units . | . . . . . . Scanalyzers . | . . . . . . Garrison Access . | . . . . . . Total Hacks 30 | . 7 1 4 1 17 Successful 23 | . 5 . 4 1 13 Failed 7 | . 2 1 . . 4 Catastrophic 2 | . 1 1 . . . Database Lockouts . | . . . . . . Manual 21 | . 7 1 1 . 12 Terminals 23 | . 7 1 . . 15 Fabricators . | . . . . . . Repair Stations 2 | . . . . . 2 Recycling Units . | . . . . . . Scanalyzers . | . . . . . . Garrison Access . | . . . . . . Terminal Hacks 10 | . 1 . 4 1 4 Record 3 | . . . 3 . . Open Door 1 | . . . . 1 . Branch Access Points 1 | . 1 . . . . Terminal Index 1 | . . . . . 1 Locate Traps 2 | . . . . . 2 Zone Layout 1 | . . . . . 1 EX-Prototype ID Bank 1 | . . . 1 . . Fabricator Hacks . | . . . . . . Repair Station Hacks 2 | . . . . . 2 Scan Component 1 | . . . . . 1 Repair 1 | . . . . . 1 Recycling Unit Hacks . | . . . . . . Scanalyzer . | . . . . . . Garrison Access Hacks . | . . . . . . Unauthorized Hacks 11 | . 4 . . . 7 Terminals 11 | . 4 . . . 7 Track 2 | . . . . . 2 Assimilate 1 | . . . . . 1 Botnet 6 | . 3 . . . 3 Operators 2 | . 1 . . . 1 Fabricators . | . . . . . . Repair Stations . | . . . . . . Recycling Units . | . . . . . . Scanalyzers . | . . . . . . Garrison Access . | . . . . . . Data Cores Recovered . | . . . . . . Used . | . . . . . . Hacking Detections 9 | . 3 1 . . 5 Full Trace Events . | . . . . . . Feedback Events . | . . . . . . Feedback Blocked . | . . . . . . Robot Schematics Acquired . | . . . . . . Robots Built . | . . . . . . Authchips . | . . . . . . Time . | . . . . . . Total Robot Build Rating . | . . . . . . Part Schematics Acquired . | . . . . . . Parts Built . | . . . . . . Authchips . | . . . . . . Time . | . . . . . . Total Part Build Rating . | . . . . . . Parts Repaired 1 | . . . . . 1 Time 26 | . . . . . 26 Parts Recycled . | . . . . . . Recycled Matter . | . . . . . . Retrieved Matter . | . . . . . . Retrieved Components . | . . . . . . Parts Scanalyzed . | . . . . . . Part Schematics Acquired . | . . . . . . Parts Damaged . | . . . . . . Bothacking | -11 -10 -10 -10 -9 -8 ------------ Run | Scr Mat Min Exi Min Mat Used RIF Installer . | . . . . . . Robots Hacked 5 | . . . 5 . . Non-combat 3 | . . . 3 . . Combat 2 | . . . 2 . . Robot Hacks Applied 5 | . . . 5 . . parse_system 5 | . . . 5 . . Relay Couplers Released . | . . . . . . Fabnet Peak Effective % . | . . . . . . Robots Rewired . | . . . . . . Allies Hacked . | . . . . . . Hacks Repelled . | . . . . . . Allies | -11 -10 -10 -10 -9 -8 -------- Run | Scr Mat Min Exi Min Mat Total Allies . | . . . . . . Largest Group . | . . . . . . Highest-Rated Group . | . . . . . . Highest-Rated Ally . | . . . . . . Total Orders . | . . . . . . Ally Attacks . | . . . . . . Total Damage . | . . . . . . Kills . | . . . . . . Allies Corrupted . | . . . . . . Allies Melted . | . . . . . . Intel | -11 -10 -10 -10 -9 -8 ------- Run | Scr Mat Min Exi Min Mat Robot Analysis Total . | . . . . . . Derelict Logs Recovered 2 | . . 1 . 1 . Drone Launches . | . . . . . . Drone Recoveries . | . . . . . . Exploration | -11 -10 -10 -10 -9 -8 ------------- Run | Scr Mat Min Exi Min Mat Turns Passed 4597 | 26 564 1128 711 536 1632 Spaces Moved 2600 | 13 367 741 480 328 671 Core . | . . . . . . Treads 292 | . 3 . . . 289 Legs 1 | 1 . . . . . Wheels 2307 | 12 364 741 480 328 382 Hover . | . . . . . . Flight . | . . . . . . Fastest Speed 100 | 100 100 145 145 145 145 Average Speed 150 | 101 118 145 145 145 183 Slowest Speed 240 | 120 160 145 145 145 240 Overloaded Moves . | . . . . . . Propulsion Burnouts . | . . . . . . Robots Hopped . | . . . . . . Cave-ins Triggered . | . . . . . . Exploration Rate (%) 59 | 2 54 99 91 62 50 Regions Visited 5 Branch Regions 3 Pre-discovered Areas 2 | . . 1 1 . . Known Exits Taken 2 | . 1 . 1 . . Unknown Exits Taken 3 | 1 . 1 . 1 . Scrap Searched 3 | . . 1 . 2 . Spaces Dug 10 | . . . . . 10 Terrain Destroyed 17 | . . . . . 17 Melee 10 | . . . . . 10 Projectile . | . . . . . . AOE 7 | . . . . . 7 Terrain Rammed . | . . . . . . Walls Destroyed . | . . . . . . Machines Disabled . | . . . . . . Actions | -11 -10 -10 -10 -9 -8 --------- Run | Scr Mat Min Exi Min Mat Total 2991 | 21 432 776 490 370 902 Wait 134 | . 10 23 1 18 82 Move 2595 | 12 366 740 479 327 671 Hop . | . . . . . . Pick Up 36 | 2 8 2 1 8 15 Fast Attach 8 | 1 . . . . 7 Attach 9 | . 1 . . . 8 Detach . | . . . . . . Swap 31 | 2 7 1 1 3 17 Drop 26 | 2 5 . . 3 16 Fire 122 | 2 33 9 . 10 68 Melee 25 | . . . 8 1 16 Ram 4 | . 2 1 . . 1 Kick . | . . . . . . Crush 1 | . . . . . 1 Escape Stasis . | . . . . . . Rewire . | . . . . . . Trap . | . . . . . . Miscellaneous . | . . . . . . Route ------- -11/Scrapyard -10/Materials (discovered 3 exits: [*Mat] / *Min x2) -10/Mines (discovered 3 exits: [*Mat x2] / *Exi) -10/Exiles (discovered 2 exits: *Min x2) -9/Mines -8/Materials (discovered 1 exit: [*Fac]) History --------- Turn | Location | Event 1 | -11/Scrapyard | Discovered new exit (range 3) 27 | -11/Scrapyard | Entered Materials 96 | -10/Materials | Identified exit to Mines 197 | -10/Materials | Discovered new exit (range 8) 309 | -10/Materials | Build established: Mutant 591 | -10/Materials | Entered Mines 609 | -10/Mines | Met a Derelict bent on vengeance 662 | -10/Mines | Found a damaged Exp. Sensor Array with a note attached 665 | -10/Mines | Found Prototype Device 766 | -10/Mines | Learned location of Storage (-9) 920 | -10/Mines | Discovered new exit (range 14) 955 | -10/Mines | Discovered new exit (range 9) 1348 | -10/Mines | Deemed a non-threat by the Exiles lab entrance 1350 | -10/Mines | Discovered new exit (range 5) 1719 | -10/Mines | Entered Exiles 1720 | -10/Exiles | Identified exit to Mines 1756 | -10/Exiles | Met 8R-AWN 1779 | -10/Exiles | Met EX-HEX 1892 | -10/Exiles | Met EX-DEC 1931 | -10/Exiles | Visited The Gauntlet 2152 | -10/Exiles | Learned location of Zion (-7) 2188 | -10/Exiles | Met EX-BIN 2239 | -10/Exiles | Aligned with FarCom system 2240 | -10/Exiles | Given EX-Vault access code 2279 | -10/Exiles | Opened EX-Vault 2288 | -10/Exiles | Found 0b10 Alert Chip 2319 | -10/Exiles | Warned to stay clear of 0b10 Research branches 2430 | -10/Exiles | Left Exiles lab with 0b10 Alert Chip 2430 | -10/Exiles | Entered Mines 2779 | -9/Mines | Met a Derelict shopkeep closing up shop 2953 | -9/Mines | Discovered new exit (range 10) 2966 | -9/Mines | Entered Materials 2966 | -8/Materials | Evolved 4 slots: Propulsion x2, Utility x1, Weapon x1 3273 | -8/Materials | Build established: Skirmisher 3956 | -8/Materials | Discovered new exit (range 9) 4302 | -8/Materials | Repaired Lgt. Treads 4591 | -8/Materials | Core integrity fell below 50% 4595 | -8/Materials | Garrison activated, responded to threat 4598 | -8/Materials | Self-destructed Last Messages --------------- 04571_ U-05 Engineer builds a Door. 04571_ W-25 Informer destroyed. 04571_ U-05 Engineer knocked back. 04573_ H-61 Shepherd calls for reinforcements. 04573_ ALERT: Hostile activity reported, dispatching reinforcements to area. 04575_ U-05 Engineer sends out distress signal. 04575_ Penetrated by Slug. 04577_ Lgt. Treads destroyed. 04579_ K-01 Serf collects debris. 04581_ K-01 Serf destroyed. 04586_ Lgt. Treads destroyed. 04588_ Ion Cannon destroyed. 04594_ H-61 Shepherd calls for reinforcements. 04594_ ALERT: Suspicious intruders detected, dispatching Specialist reinforcements to area. 04594_ Critical hit (Burn: +37). 04595_ G-47 Trooper destroyed. 04595_ G-47 Trooper calls for garrison reinforcements. 04595_ ALERT: Activating Garrison Access M001. 04595_ G-47 Trooper knocked back. Map ----- +----------------------------------------------------+ | ?????????????????????????????????????????????????? | | ?????????????????????????????????????????????????? | | ?? ??????????????????????????????????????????????? | | ?? o?????????????????????????????????????????????? | | ?? ??????????????????????????????????????????????? | | ?? ??????????????????????????????????????????????? | | ?? ??????????????????????????????????????????????? | | ?? ??????????????????????????????????????????????? | | ?? ??????????????????????????????????????????????? | | ?# #?????????????????????????????????????????????? | | ?# #?????????????????????????????????????????????? | | ?# #?????????????????????????????????????????????? | | ?# #?????????????????????????????????????????????? | | ?# #????????????#????????????????????????????????? | | ?+ ########?????# ???????????????????????????????? | | ?# # = #?????# ?????????????????????????????? | | ?# # #?????# ?????????????????????????????? | | ?# # #?????# ""?????????#????????????????? | | ?#!# #?????? ""???????? #????????????????? | | ?# + [ #??????? """?????? #????????????????? | | ?# # #???????? ????? ?????????????????? | | ##*########???????### ##??%[ ??????????????????? | | =*! #???????????## ###;########## ?????????? | | %% /!############# ! % *=!= ????????? | | !*= ] k a[]g%[g[* %!%H ????????? | | [%///############# !%=% @ = ????????? | | =!] #???????????# % #;;#######??????????????? | | ######???????????## # gg#####????????????????????? | | ????????????????????# #????s???x???????????????? | | ????????????????????# #???????x????????????????? | | ????????????????????+ +???s????????????????????? | | ????????????????????# #?????s??????????????????? | | ####????????????????# #????????????????????????? | | #????????????????# #????????????????????????? | | ## #????????????????##+##????????????????????????? | | ?# #?????????????????????????????????????????????? | | ?# #?????????????????????????????????????????????? | | ?# #?????????????????????????????????????????????? | | ?# #?????????????????????????????????????????????? | | ?# #?????????????????????????????????????????????? | | ?# #?????????????????????????????????????????????? | | ?# #?????????????????????????????????????????????? | | ?# #?????????????????????????????????????????????? | | ?# #?????????????????????????????????????????????? | | ##+#?????????????????????????????????????????????? | | T" #?????????????????????????????????????????????? | | #?????????????????????????????????????????????? | | " #?????????????????????????????????????????????? | | " !#?????????????????????????????????????????????? | | " #???###########???????????????????????????????? | +----------------------------------------------------+ Best States ------------- Heat Dissipation 45 Energy Generation 12 Energy Capacity 265 Matter Stores 300 Matter Capacity 300 Sight Range 16 Terrain Scan Density 10 Armor Coverage 225 Evasion (%) 40 Targeting Accuracy 6 Recoil Reduction 4 Item Schematics ----------------- None Robot Schematics ------------------ None Fabricated ------------ Nothing Alien Tech Used ----------------- None Achievements -------------- None Challenges ------------ None Game ------ Seed MassGrapheneStreamer Manual? 0 Play Time 00:41:26 Cumulative 25.5 hours Start 2022.06.16 @ 18:39:34 End 2022.06.16 @ 19:43:42 Sessions 2 Manual Loads 0 Difficulty Rogue Special Mode None Game No. 29 Rogue 29 Adventurer 0 Explorer 0 Win Type - Total 0 Types 0/0/0/0/0/0/0/0/0 Lore% 12 Gallery% 28 Achievement% 23 Wizard Run 0 Options --------- ASCII 0 Keyboard 0 Movement Numpad Keybinds 0 Fullscreen 1 Font 12/Smallcaps Map View 83x54 Tactical HUD 1 Map Filters NONE Filters NONE Steam 1 RUN: 0c991372-a25c-4b59-8b3a-cb3337cfbc1e